[Event "81st Italian Championship 2022"]
[Site "Cagliari"]
[Date "2022.11.19"]
[Round "7.4"]
[White "David, Alberto"]
[Black "Moroni, Luca Jr"]
[Result "0-1"]
[ECO "D35"]
[WhiteElo "2517"]
[BlackElo "2559"]
[Annotator "TA"]
[PlyCount "141"]
[EventDate "2022.11.12"]
[EventType "tourn"]
[EventCountry "ITA"]
[SourceTitle "playchess.com"]
[Source "ChessBase"]
[SourceQuality "1"]
[TimeControl "40/6000+30:20/3000:900+30"]

{[%evp 15,141,6,10,17,21,14,27,26,31,13,17,19,12,0,32,2,10,0,31,31,21,26,24,11,12,3,23,19,17,0,5,-7,20,21,31,22,31,19,26,0,0,-11,-10,-11,-10,-10,-10,-10,0,0,0,0,0,0,0,0,0,0,0,-5,-5,-6,0,0,0,0,0,0,0,0,0,0,0,0,0,0,-6,-12,0,-94,-20,-158,-173,-182,-192,-225,-205,-205,-205,-239,-280,-237,-102,-105,-101,-96,-46,-900,-808,-362,-594,-747,-11,-168,-197,-247,-212,-226,-248,-2055,-1735,-5712,-29955,-29954,-29957,-29964,-6107,-29957,-29958,-29959,-29960,-29966,-29966,-29967,-29965,-29973,-29974,-29963]} 1. d4 {[%emt 0:00:04]} d5 {[%emt 0:00:04]} 2. c4 {[%emt 0:00:05]} e6 {[%emt 0:00:04]} 3. Nc3 {[%emt 0:00:07]} Nf6 {[%emt 0:00:15]} 4. cxd5 {[%emt 0:00:16]} exd5 {[%emt 0:00:05]} 5. Bg5 {[%emt 0:00:08]} c6 {[%emt 0:00:10]} 6. e3 {[%emt 0:00:23]} h6 {[%emt 0:00:06]} 7. Bh4 {[%emt 0:00:39]} Be7 {[%emt 0:00:05]} 8. Bd3 {[%emt 0:00:55]} O-O {[%emt 0:00:11]} 9. Nge2 {[%emt 0:04:27] is more profitable than 9.Qc2 at the moment. D35: Queen's Gambit Declined: Exchange Variation.} Re8 {[%emt 0:03:26]} 10. O-O {[%emt 0:06:23]} a5 {[%emt 0:00:17]} 11. Rc1 {[%emt 0:23:09] White has an edge.} Na6 {[%emt 0:00:44][%cal Bb8a6,Ba6c7,Bc7e6][%mdl 32] [#]} 12. Kh1 $146 {[%emt 0:06:33]} ({Predecessor:} 12. a3 Nc7 13. f3 Ne6 14. Qd2 b5 15. Bf2 Ba6 16. Ng3 Qb6 17. Nce2 b4 18. axb4 axb4 {1-0 (40) Shuvalova,P (2516)-Kiolbasa,O (2399) Warsaw 2021}) 12... Nc7 {[%emt 0:07:26]} 13. f3 {[%emt 0:00:21]} Ne6 {[%emt 0:08:39]} 14. Bf2 {[%emt 0:04:39]} Nh5 {[%emt 0:11:07]} 15. Ng3 {[%emt 0:09:55]} Nxg3+ {[%emt 0:02:58]} 16. Bxg3 {[%emt 0:00:04]} Bd6 {[%emt 0:07:41]} 17. Bxd6 {[%emt 0:01:21]} Qxd6 {[%emt 0:00:02]} 18. Bb1 {[%emt 0:02:15]} b6 {[%emt 0:05:31]} 19. Qb3 {[%emt 0:05:24]} Rb8 {[%emt 0:06:38]} 20. Rfe1 {[%emt 0:09:03]} Bd7 {[%emt 0:06:25]} 21. Rcd1 {[%emt 0:02:20]} Ng5 {[%emt 0:07:47]} 22. a3 {[%emt 0:02:53]} Re7 {[%emt 0:06:35]} 23. Qc2 {[%emt 0:14:51]} g6 {[%emt 0:07:18][%cal Bg7g6,Bg6g5][%mdl 32]} (23... f5 {seems wilder.} 24. Na4 f4 25. h4 Nf7) 24. Qf2 {[%emt 0:02:11]} f5 {[%emt 0:10:27]} 25. Ne2 {[%emt 0:01:17]} Rbe8 {[%emt 0:00:41]} 26. Nf4 {[%emt 0:00:36][%cal Ob2b4]} Nf7 {[%emt 0:00:24]} 27. Ba2 {[%emt 0:03:32]} Bc8 {[%emt 0:03:26]} 28. Kg1 {[%emt 0:03:19]} g5 {[%emt 0:03:15]} 29. Nd3 {[%emt 0:01:02]} Ba6 {[%emt 0:00:24]} 30. Bb1 {[%emt 0:01:26]} f4 {[%emt 0:02:17]} 31. exf4 {[%emt 0:04:00]} Bxd3 {[%emt 0:00:08]} (31... Rxe1+ {simplifies} 32. Rxe1 Rxe1+ 33. Qxe1 Bxd3 34. Bxd3 Qxf4 35. Qc3 Qe3+) 32. Rxe7 {[%emt 0:00:23]} Rxe7 {[%emt 0:02:42]} 33. Bxd3 {[%emt 0:00:05]} gxf4 {[%emt 0:01:09]} 34. Qh4 {[%emt 0:01:21]} Kf8 {[%emt 0:03:18]} 35. Kf2 {[%emt 0:01:22]} Ng5 {[%emt 0:00:57]} 36. Qg4 {[%emt 0:00:19]} Qf6 {[%emt 0:00:56]} 37. Bf5 {[%emt 0:00:44]} Rf7 {[%emt 0:02:06]} 38. Bc8 {[%emt 0:00:29]} Re7 {[%emt 0:01:22]} (38... Qe7 $2 39. Re1 Qf6 40. Re5 $18) 39. Qf5 {[%emt 0:00:37]} Kg7 {[%emt 0:00:49]} 40. Qxf6+ {[%emt 0:00:08]} Kxf6 $11 {[%emt 0:00:03][%mdl 4096] Endgame KRB-KRN} 41. Rc1 {[%emt 0:01:48]} Rc7 {[%emt 0:09:16]} 42. Bg4 {[%emt 0:00:00]} c5 {[%emt 0:14:51]} 43. g3 {[%emt 0:00:13]} Ne6 {[%emt 0:05:01]} 44. Bxe6 {[%emt 0:02:03]} Kxe6 {[%emt 0:03:47] KR-KR} 45. g4 {[%emt 0:00:18]} Kd6 {[%emt 0:01:22]} 46. h4 {[%emt 0:00:00]} c4 {[%emt 0:06:23]} (46... cxd4 $2 47. Rxc7 Kxc7 48. g5 hxg5 49. h5 $18) 47. a4 {[%emt 0:13:45]} (47. Ke1 $11) 47... Rb7 {[%emt 0:01:24]} ({Black should try} 47... b5 $1 $17 {[%cal Rb5a4]}) 48. Re1 {[%emt 0:06:20]} (48. Ra1 $11) 48... b5 $1 $17 {[%emt 0:00:05]} 49. axb5 {[%emt 0:00:00]} Rxb5 {[%emt 0:00:00]} 50. Re2 {[%emt 0:00:00]} Rb7 {[%emt 0:00:38]} 51. Kf1 {[%emt 0:02:48]} a4 {[%emt 0:01:48][%cal Oc4c3] Hoping for ...c3!} 52. g5 {[%emt 0:00:38]} hxg5 {[%emt 0:00:00]} 53. hxg5 {[%emt 0:00:00]} Re7 {[%emt 0:00:42]} (53... Rb3 $1 $19 {[%cal Rb3f3]} 54. Kf2 Rb7) 54. Rh2 {[%emt 0:10:48]} Re3 {[%emt 0:00:15]} 55. Rh6+ {[%emt 0:00:00]} Ke7 {[%emt 0:00:00]} (55... Kd7 $17 56. Ra6 Rxf3+ 57. Ke2 Re3+ 58. Kf2 a3 59. bxa3 Rg3) 56. Kg2 {[%emt 0:00:00][%mdl 8192]} (56. Ra6 $15) 56... Rb3 {[%emt 0:01:42]} 57. Kh3 {[%emt 0:08:44]} Rxb2 {[%emt 0:00:16]} 58. Kg4 {[%emt 0:00:29][%cal Og4f5]} a3 $2 {[%emt 0:00:27]} (58... c3 $19 59. Rh7+ Kd6 60. Rh6+ Kd7 61. Rh7+ Kc6) 59. Rh7+ $2 {[%emt 0:01:04]} (59. Ra6 $1 $11) 59... Kd6 $19 {[%emt 0:03:09]} 60. Ra7 {[%emt 0:00:50]} a2 {[%emt 0:00:05] aiming for ...c3.} 61. g6 {[%emt 0:10:08] [#]} Rg2+ $1 {[%emt 0:06:01]} 62. Kf5 $2 {[%emt 0:00:04]} (62. Kxf4 c3 63. Kf5) 62... Kc6 {[%emt 0:04:11]} ({Not} 62... c3 63. g7 $15) 63. g7 {[%emt 0:06:53] [#]} Rxg7 $3 {[%emt 0:00:15][%mdl 512]} 64. Rxa2 {[%emt 0:00:03]} Kb5 {[%emt 0:01:42]} 65. Ke5 {[%emt 0:01:13]} Rd7 {[%emt 0:02:42]} (65... c3 $142 66. Kxd5 Re7 67. Ra1 c2 68. Kd6 Re2 69. Rc1 Kc4 70. d5 Kc3 71. Rh1 Re3 72. Rf1 Kd2 73. Kc5 {[#]} Rxf3 $3 {[%mdl 512]} 74. Rxf3 c1=Q+ 75. Kd6 Ke2 76. Rh3 f3 77. Rh2+ Kd3 78. Rh3 Qf4+ 79. Kc6 Qf5 80. Rh1 f2 81. Rd1+ Ke2 82. Rh1 Qe4 83. Rc1 Qa4+ 84. Kb7 Qd7+ 85. Kb6 Qd6+ 86. Kb5 f1=Q 87. Rxf1 Qxd5+ 88. Kb6 Kxf1 89. Ka6 Ke2 90. Kb6 Kd3 91. Ka7 Kc4 92. Ka6 Qd7 93. Kb6 Kb4 94. Ka6 Kc5 95. Ka5 Qb5#) 66. Ra8 {[%emt 0:00:14]} c3 {[%emt 0:02:13] Black mates.} 67. Rc8 {[%emt 0:00:11]} Kb4 {[%emt 0:00:24]} 68. Ke6 {[%emt 0:00:03]} Rh7 {[%emt 0:01:29]} 69. Kxd5 {[%emt 0:00:04]} Re7 {[%emt 0:00:36]} 70. Rb8+ {[%emt 0:02:05]} Ka3 {[%emt 0:00:17]} 71. Rc8 {[%emt 0:01:08] Weighted Error Value: White=0.28 (precise) /Black=0.21 (precise)} 0-1

[Event "81st Italian Championship 2022"]
[Site "Cagliari"]
[Date "2022.11.19"]
[Round "7.5"]
[White "Sonis, Francesco"]
[Black "Lodici, Lorenzo"]
[Result "1-0"]
[ECO "A61"]
[WhiteElo "2547"]
[BlackElo "2536"]
[Annotator "TA"]
[PlyCount "85"]
[EventDate "2022.11.12"]
[EventType "tourn"]
[EventCountry "ITA"]
[SourceTitle "playchess.com"]
[Source "ChessBase"]
[SourceQuality "1"]
[TimeControl "40/6000+30:20/3000:900+30"]

{[%evp 16,85,56,58,58,44,50,24,25,31,55,42,41,21,52,35,60,52,59,13,72,58,46,56,77,33,46,41,40,25,38,18,18,16,6,0,15,0,13,0,61,51,94,0,30,35,40,26,45,0,12,14,105,111,185,185,397,172,331,314,462,462,1099,1072,1055,1007,858,841,29993,6275,2395,1420]} 1. d4 {[%emt 0:02:10]} Nf6 {[%emt 0:03:12]} 2. c4 {[%emt 0:00:14]} e6 {[%emt 0:00:08]} 3. Nf3 {[%emt 0:00:06]} c5 {[%emt 0:00:05]} 4. d5 {[%emt 0:01:03]} exd5 {[%emt 0:00:14]} 5. cxd5 {[%emt 0:00:07]} d6 {[%emt 0:00:01]} 6. Nc3 {[%emt 0:00:10]} g6 {[%emt 0:00:06]} 7. h3 {[%emt 0:09:39]} a6 {[%emt 0:02:29]} 8. a4 {[%emt 0:00:24]} Qe7 {[%emt 0:00:04]} 9. Bf4 {[%emt 0:01:41]} Bg7 {[%emt 0:01:41] A61: Modern Benoni: Nf3 without early e4.} 10. e3 {[%emt 0:00:22]} O-O {[%emt 0:02:24]} 11. Bd3 {[%emt 0:02:37]} Nh5 {[%emt 0:01:39] White has an edge.} 12. Bh2 {[%emt 0:00:07]} f5 {[%emt 0:00:08]} 13. O-O {[%emt 0:02:04]} Nd7 {[%emt 0:00:04]} 14. Re1 {[%emt 0:02:31]} Rb8 {[%emt 0:05:36] [#]} 15. Nd2 $146 {[%emt 0:04:36]} ({Predecessor:} 15. Qb3 Kh8 16. Nd2 Be5 17. Bxe5+ Nxe5 18. Be2 Nf6 19. Bxa6 bxa6 20. Qxb8 Bb7 21. Qa7 {1-0 (33) Skytte,R (2430)-Glud,J (2518) Skorping 2014}) 15... Ne5 {[%emt 0:05:21]} 16. Be2 {[%emt 0:00:01]} Nf6 {[%emt 0:00:19]} 17. Kh1 {[%emt 0:04:38]} (17. a5 $14 {should be considered.}) 17... g5 {[%emt 0:15:47]} (17... b6 $11 {remains equal.}) 18. f4 $16 {[%emt 0:30:45]} Nf7 {[%emt 0:00:11]} 19. fxg5 {[%emt 0:00:06]} Nxg5 {[%emt 0:00:07]} 20. Bd3 {[%emt 0:00:14]} Nd7 {[%emt 0:05:31]} 21. Nc4 {[%emt 0:04:11]} Ne5 {[%emt 0:00:07]} 22. Nxe5 {[%emt 0:00:13]} Bxe5 {[%emt 0:00:03]} 23. Bf4 {[%emt 0:01:30]} Kh8 {[%emt 0:11:33]} 24. Qd2 {[%emt 0:10:54]} Qg7 {[%emt 0:07:55]} 25. Rf1 {[%emt 0:01:31]} Bd7 {[%emt 0:04:06]} 26. a5 {[%emt 0:05:16]} Rbe8 {[%emt 0:11:21]} 27. Rf2 {[%emt 0:03:30]} Nf7 {[%emt 0:11:12]} (27... Rf6 $11) 28. Raf1 {[%emt 0:00:53]} Bf6 {[%emt 0:00:15]} 29. Ne2 {[%emt 0:06:03]} ({White should play} 29. Qc2 $16) 29... Bh4 {[%emt 0:07:54]} 30. Rf3 {[%emt 0:00:42]} Ne5 {[%emt 0:01:07]} 31. Bxe5 {[%emt 0:00:35]} Qxe5 {[%emt 0:00:01]} 32. Qc3 {[%emt 0:01:16]} Bd8 {[%emt 0:01:42]} 33. Qb3 {[%emt 0:02:56]} Bc8 {[%emt 0:01:39]} (33... Re7 $1 $11) 34. Ng3 $1 {[%emt 0:00:26][%cal Rd3f5]} Bxa5 {[%emt 0:01:14]} (34... Rg8 $16 35. Nxf5 (35. Bxf5 Rxg3 36. Bxc8 Rxf3 $14) 35... Bxf5 36. Bxf5 Qg7) 35. Bxf5 $18 {[%emt 0:00:15]} b5 $2 {[%emt 0:01:51]} (35... Rg8) 36. e4 {[%emt 0:02:29]} (36. Bb1 $142 Rxf3 37. Rxf3) 36... Bd2 $2 {[%emt 0:01:48]} (36... c4 {was worth a try.} 37. Qe3 Rg8) 37. Bxh7 {[%emt 0:02:21]} Rxf3 {[%emt 0:00:40]} (37... Bh6 $142) 38. Qxf3 {[%emt 0:00:02] Threatens to win with Bf5.} Kxh7 {[%emt 0:00:29] [#]} (38... Bh6 $142) 39. Qf7+ $1 {[%emt 0:00:06]} Kh8 {[%emt 0:00:06] [#]} 40. Nf5 $1 {[%emt 0:00:05]} Bd7 {[%emt 0:07:13]} 41. Rf3 {[%emt 0:57:39]} Be1 {[%emt 0:51:28]} 42. Qxd7 {[%emt 0:00:14]} (42. Qh5+ $142 Kg8 43. Nh6+ Kh8 44. Nf7+ Kg7 45. Nxe5 Be6 46. Rf7+ Bxf7 47. Qxf7+ Kh8 48. Ng6#) 42... Rf8 {[%emt 0:00:01]} 43. Ne7 {[%emt 0:00:00] Weighted Error Value: White=0.20 (precise) /Black=0.58} 1-0

[Event "81st Italian Championship 2022"]
[Site "Cagliari"]
[Date "2022.11.19"]
[Round "7.6"]
[White "Di Benedetto, Edoardo"]
[Black "Dvirnyy, Danyyil"]
[Result "0-1"]
[ECO "E04"]
[WhiteElo "2378"]
[BlackElo "2514"]
[Annotator "TA"]
[PlyCount "70"]
[EventDate "2022.11.12"]
[EventType "tourn"]
[EventCountry "ITA"]
[SourceTitle "playchess.com"]
[Source "ChessBase"]
[SourceQuality "1"]
[TimeControl "40/6000+30:20/3000:900+30"]

{[%evp 13,70,0,3,12,12,3,10,10,23,21,22,0,0,0,0,0,0,-16,-6,-21,0,0,-12,-39,-36,-20,-26,-90,-82,-80,0,-69,-60,-147,-143,-142,-137,-296,-179,-184,-134,-143,-145,-139,-144,-132,-132,-253,-251,-603,-603,-890,-1091,-921,-882,-841,-824,-778,-704]} 1. d4 {[%emt 0:00:07]} Nf6 {[%emt 0:00:17]} 2. c4 {[%emt 0:00:07]} e6 {[%emt 0:00:19]} 3. Nf3 {[%emt 0:00:07]} d5 {[%emt 0:00:44]} 4. g3 {[%emt 0:02:12]} Nbd7 {[%emt 0:00:39]} 5. Bg2 {[%emt 0:01:38]} dxc4 {[%emt 0:01:01]} 6. O-O {[%emt 0:04:49]} c6 {[%emt 0:00:50] seems to push 6...c5 aside.} 7. Qc2 {[%emt 0:04:02]} b5 {[%emt 0:00:29]} 8. b3 {[%emt 0:09:35] E04: Open Catalan: 5 Nf3.} cxb3 {[%emt 0:00:18]} 9. Qxc6 {[%emt 0:01:21]} Rb8 {[%emt 0:06:58]} 10. axb3 {[%emt 0:00:11] The position is equal.} Bb7 {[%emt 0:02:01]} 11. Qc2 {[%emt 0:00:10]} Rc8 {[%emt 0:02:26]} 12. Qd3 {[%emt 0:01:44]} a6 {[%emt 0:04:46] [#]} 13. Nbd2 $146 {[%emt 0:00:43]} ({Predecessor:} 13. Bd2 Bd6 14. Ba5 Qe7 15. Nbd2 O-O 16. Rfc1 e5 17. Nxe5 Nxe5 18. dxe5 Bxe5 19. Bxb7 Qxb7 20. Rxc8 Rxc8 {½-½ (62) Hillarp Persson,T (2542)-Arnold,M (2433) Oslo 2010}) 13... Be7 {[%emt 0:04:17]} 14. Bb2 {[%emt 0:01:23]} O-O {[%emt 0:01:53]} 15. Rfc1 {[%emt 0:01:51]} Qb6 {[%emt 0:08:40]} 16. e4 {[%emt 0:11:19]} Rfd8 {[%emt 0:08:47]} 17. Bc3 {[%emt 0:09:59]} Nb8 {[%emt 0:16:04]} 18. Ne5 {[%emt 0:02:16]} Bd6 {[%emt 0:11:43]} 19. Nef3 {[%emt 0:11:18] aiming for e5.} Nc6 {[%emt 0:02:44]} 20. d5 {[%emt 0:21:34]} (20. Qe3 $11 {remains equal.}) 20... Be7 $17 {[%emt 0:04:33][%cal Re6d5,Bd6e7,Be7c5,Bc5d4][%mdl 32]} 21. Bh3 {[%emt 0:08:07]} Rc7 {[%emt 0:05:34]} (21... Nb4 $17 22. Qe2 Rxc3 23. Rxc3 exd5) 22. Qe3 {[%emt 0:07:41]} (22. Qc2 $1 $11 Nb4 23. Bd4 Rxc2 24. Bxb6) 22... Bc5 $1 $15 {[%emt 0:06:05]} (22... Qxe3 23. fxe3 exd5 24. Ba5 $14) 23. Qe2 {[%emt 0:05:52]} (23. Qf4 $1 $15 Bxf2+ 24. Kg2 exd5 25. Bxf6 gxf6 26. Qxf6) 23... exd5 $17 {[%emt 0:01:32]} 24. Bxf6 {[%emt 0:00:50]} gxf6 {[%emt 0:00:11]} 25. exd5 $2 {[%emt 0:01:14] Loses the game.} (25. Rd1 $17 {was worth a try.}) 25... Rxd5 {[%emt 0:00:39] ...Re7 is the strong threat.} 26. Ne4 {[%emt 0:01:22]} ({But not} 26. Qe8+ $2 Kg7 27. Qe2 (27. Ne4 $2 Rd8 $19) 27... Nb4 $19) 26... Nd4 {[%emt 0:05:19]} ({Better is} 26... Bd4 $19 27. Nc3 (27. Nxd4 $2 Nxd4 28. Qe3 Re7 $19) 27... Rd8) 27. Nxd4 {[%emt 0:00:24]} Bxd4 {[%emt 0:00:05] This bishop pair is nice.} 28. Rxc7 {[%emt 0:00:23]} Qxc7 {[%emt 0:00:29]} 29. Rd1 {[%emt 0:01:10][%cal Od1d4]} Qe5 {[%emt 0:03:46] Strongly threatening ...f5.} 30. Qg4+ {[%emt 0:00:41] [#]} (30. Kf1 $17 {was necessary.}) 30... Kf8 $1 $19 {[%emt 0:00:31]} 31. Qh4 $2 {[%emt 0:00:55]} (31. Kf1) 31... f5 {[%emt 0:03:11] Black is clearly winning.} 32. Ng5 {[%emt 0:00:52] [#]} Bxf2+ $1 {[%emt 0:00:42][%mdl 512]} 33. Kxf2 {[%emt 0:00:05]} Rxd1 {[%emt 0:02:53][%csl Gd1][%cal Re5e1]} 34. Nxh7+ {[%emt 0:00:04]} Kg7 {[%emt 0:00:16][%csl Gd1][%cal Re5e1]} 35. Qg5+ {[%emt 0:01:19]} Kh8 {[%emt 0:00:08] Weighted Error Value: White=0.53/Black=0.14 (very precise)} 0-1

[Event "81st Italian Championship 2022"]
[Site "Cagliari"]
[Date "2022.11.20"]
[Round "8.1"]
[White "Barp, Alberto"]
[Black "Dvirnyy, Danyyil"]
[Result "1/2-1/2"]
[ECO "E08"]
[WhiteElo "2412"]
[BlackElo "2514"]
[Annotator "TA"]
[PlyCount "49"]
[EventDate "2022.11.12"]
[EventType "tourn"]
[EventCountry "ITA"]
[SourceTitle "playchess.com"]
[Source "ChessBase"]
[SourceQuality "1"]
[TimeControl "40/6000+30:20/3000:900+30"]

{[%evp 17,49,18,27,31,36,9,32,0,10,10,10,0,9,6,4,4,21,8,19,0,14,14,19,0,20,0,2,0,12,0,12,0,22,0]} 1. d4 {[%emt 0:06:12]} Nf6 {[%emt 0:00:10]} 2. c4 {[%emt 0:00:17]} e6 {[%emt 0:00:08]} 3. Nf3 {[%emt 0:00:22]} d5 {[%emt 0:00:19]} 4. g3 {[%emt 0:00:06]} Bb4+ {[%emt 0:00:21]} 5. Bd2 {[%emt 0:00:04]} Be7 {[%emt 0:00:21]} 6. Bg2 {[%emt 0:00:06]} c6 {[%emt 0:00:56]} 7. Qc2 {[%emt 0:00:29]} Nbd7 {[%emt 0:00:17]} 8. O-O {[%emt 0:00:13]} O-O {[%emt 0:00:12]} 9. Bf4 {[%emt 0:01:14]} a5 {[%emt 0:01:32]} 10. Rd1 {[%emt 0:00:26] E08: Closed Catalan: Main Line: 7 Qc2.} h6 {[%emt 0:00:30]} 11. a3 {[%emt 0:11:29] [#]} b5 $146 {[%emt 0:07:45]} ({Predecessor:} 11... b6 12. Nc3 Ba6 13. Ne5 Rc8 14. b4 g5 15. Bd2 Nxe5 16. dxe5 Ng4 17. b5 cxb5 18. cxd5 b4 19. axb4 Bxb4 20. Qb2 Nxe5 21. Ne4 Nc4 22. Qf6 Nxd2 {½-½ (22) Voveris,G (2380)-Iacomi,S (2343) ICCF email 2020}) 12. Ne5 {[%emt 0:06:58] White is slightly better.} Nxe5 {[%emt 0:11:17] The position is equal.} 13. dxe5 {[%emt 0:00:16]} Nd7 {[%emt 0:01:53]} 14. cxd5 {[%emt 0:00:59]} cxd5 {[%emt 0:00:10]} 15. e4 {[%emt 0:09:36]} d4 {[%emt 0:01:57]} (15... g5 $2 16. exd5 Ra6 17. dxe6 Rxe6 18. Be3 $18) 16. Rxd4 {[%emt 0:02:26]} Qb6 {[%emt 0:06:02]} 17. Rd2 {[%emt 0:07:22]} Qb8 {[%emt 0:14:39]} 18. Qd1 {[%emt 0:22:09]} Nc5 {[%emt 0:11:08]} 19. Nc3 {[%emt 0:08:42]} b4 {[%emt 0:08:52]} 20. axb4 {[%emt 0:02:21]} (20. Nd5 {seems wilder.} exd5 21. e6 Bd6 22. Rxd5 Bxf4 23. e7) 20... Qxb4 {[%emt 0:01:22]} 21. Be3 {[%emt 0:04:42]} Bb7 {[%emt 0:08:17]} 22. Na2 {[%emt 0:08:24]} Qb5 {[%emt 0:01:02]} 23. Nc3 {[%emt 0:01:06]} Qb4 {[%emt 0:01:57]} 24. Na2 {[%emt 0:00:43]} Qb5 {[%emt 0:03:44]} 25. Nc3 {[%emt 0:02:22] Weighted Error Value: White=0.12 (very precise) /Black=0.04 (flawless)} 1/2-1/2

[Event "81st Italian Championship 2022"]
[Site "Cagliari"]
[Date "2022.11.20"]
[Round "8.2"]
[White "Lodici, Lorenzo"]
[Black "Di Benedetto, Edoardo"]
[Result "0-1"]
[ECO "E20"]
[WhiteElo "2536"]
[BlackElo "2378"]
[Annotator "TA"]
[PlyCount "112"]
[EventDate "2022.11.12"]
[EventType "tourn"]
[EventCountry "ITA"]
[SourceTitle "playchess.com"]
[Source "ChessBase"]
[SourceQuality "1"]
[TimeControl "40/6000+30:20/3000:900+30"]

{[%evp 11,112,-5,18,13,15,9,27,-14,-15,-16,-13,-22,-2,-6,-21,-10,-16,-48,-42,-79,-79,-62,-70,-63,-66,-67,-70,-55,-58,-70,-79,-99,-75,-106,-95,-133,-69,-123,-118,-138,-138,-147,-147,-144,-143,-142,-139,-149,-118,-136,-127,-133,-127,-210,-138,-127,-130,-181,-152,-154,-128,-203,-202,-208,-189,-298,-287,-344,-334,-339,-314,-401,-391,-460,-435,-560,-550,-572,-562,-613,-524,-495,-456,-549,-512,-1585,-1381,-1713,-1012,-1708,-1695,-1605,-1616,-1473,-1557,-1661,-1659,-1956,-1864,-29966,-6087,-1626,-1095]} 1. d4 {[%emt 0:08:34]} d5 {[%emt 0:00:06]} 2. c4 {[%emt 0:00:04]} e6 {[%emt 0:00:03]} 3. Nf3 {[%emt 0:00:24]} Nf6 {[%emt 0:00:04]} 4. g3 {[%emt 0:00:07]} Bb4+ {[%emt 0:00:12]} 5. Nc3 {[%emt 0:00:14]} O-O {[%emt 0:00:13]} 6. Bg2 {[%emt 0:00:03]} c5 {[%emt 0:08:04]} 7. dxc5 {[%emt 0:02:12] 7.0-0 is setting a new trend. E20: Nimzo-Indian: 4 g3 and 4 f3.} dxc4 {[%emt 0:00:39]} 8. Qa4 {[%emt 0:05:16]} Nc6 {[%emt 0:02:18] [#]} 9. a3 $146 {[%emt 0:06:19] White has an edge.} ({Predecessor:} 9. O-O Bd7 10. Rd1 Qe7 11. Bg5 Bxc3 12. bxc3 Ne5 13. Qb4 Nxf3+ 14. Bxf3 Bc6 15. Bxc6 bxc6 16. Qxc4 {0-1 (30) Teodoro,R-Navinsek,T (2329) Dos Hermanas 2004}) 9... Bxc3+ {[%emt 0:07:51]} 10. bxc3 {[%emt 0:03:25]} Qa5 {[%emt 0:00:06]} 11. Qxc4 {[%emt 0:00:23]} e5 $1 {[%emt 0:00:04] Prevents Bf4. Strongly threatening ...Be6.} 12. O-O $1 {[%emt 0:04:37]} Be6 {[%emt 0:00:25]} 13. Qh4 {[%emt 0:00:09]} Qxc5 {[%emt 0:00:06]} 14. Bg5 {[%emt 0:03:20]} Nd5 $36 {[%emt 0:02:18][%mdl 2048] Black has the initiative.} 15. c4 {[%emt 0:02:38]} Nc3 {[%emt 0:02:25][%csl LRc4,LRe2]} 16. Rfe1 {[%emt 0:08:56]} Qxc4 {[%emt 0:01:59] Black is much more active. The white rooks are badly placed.} ({Resist} 16... Bxc4 17. Rac1 (17. Be3 Qb5 $15) 17... Bxe2 18. Bd2 (18. Rxc3 Qxc3 19. Rxe2 Qxa3 $11) 18... Bxf3 19. Bxf3 $16) 17. Qxc4 {[%emt 0:00:56]} Bxc4 {[%emt 0:00:05]} 18. Bf1 {[%emt 0:00:16] Threatens to win with Rac1.} Ne4 {[%emt 0:05:46]} 19. Be3 {[%emt 0:00:18]} Rfd8 {[%emt 0:01:38]} 20. a4 {[%emt 0:02:38]} f6 {[%emt 0:10:37]} 21. Rac1 {[%emt 0:02:34]} Bd5 {[%emt 0:03:29]} 22. Bg2 {[%emt 0:06:43]} Nd6 {[%emt 0:02:30]} 23. Bc5 {[%emt 0:01:12] [#]} Ne8 {[%emt 0:17:35]} (23... Nc4 $1 $17 24. Rc3 Nb2) 24. Nh4 {[%emt 0:08:49]} (24. Rc3 $15) 24... Bxg2 $17 {[%emt 0:00:29]} 25. Nxg2 {[%emt 0:00:03]} Rac8 {[%emt 0:05:59]} 26. Ne3 {[%emt 0:01:22]} b6 {[%emt 0:01:15]} 27. Ba3 {[%emt 0:00:11]} Nd4 {[%emt 0:03:55]} 28. Kf1 {[%emt 0:00:07]} Kf7 {[%emt 0:01:40]} 29. Red1 {[%emt 0:01:59]} Ke6 {[%emt 0:01:52]} 30. f4 {[%emt 0:00:37]} g5 {[%emt 0:12:05]} 31. fxe5 {[%emt 0:02:45]} fxe5 {[%emt 0:00:08]} 32. Bb2 {[%emt 0:03:57]} (32. Ng4 $17) 32... Rxc1 {[%emt 0:03:01]} 33. Rxc1 {[%emt 0:00:38]} Nd6 {[%emt 0:03:05]} 34. Rd1 {[%emt 0:06:59]} (34. Ba3 $17) 34... Nb7 {[%emt 0:02:43]} 35. Nc4 {[%emt 0:00:52][%cal Oc4e5]} Nc6 {[%emt 0:02:24]} 36. Ra1 {[%emt 0:02:06]} (36. Rc1 $17) 36... Nc5 $19 {[%emt 0:00:23]} 37. Bc3 {[%emt 0:02:00]} Ne4 {[%emt 0:00:43]} 38. Be1 {[%emt 0:00:03]} (38. Bb2 {was called for.}) 38... Nd4 {[%emt 0:00:48]} 39. Ne3 {[%emt 0:01:26]} Rf8+ {[%emt 0:00:46]} 40. Kg2 {[%emt 0:00:06]} Nxe2 {[%emt 0:00:36] Pair of Knights!} 41. a5 {[%emt 0:49:02] [#]} b5 {[%emt 0:15:01]} 42. a6 {[%emt 0:00:00]} Nd4 {[%emt 0:06:09]} 43. Rc1 {[%emt 0:00:00]} Rf3 {[%emt 0:00:19]} 44. Nc2 {[%emt 0:00:00] Nxd4+ is the strong threat.} g4 {[%emt 0:00:00][%cal Bg5g4,Bg4h3][%mdl 32]} 45. h3 {[%emt 0:00:00]} Nxc2 {[%emt 0:01:11]} 46. Rxc2 {[%emt 0:00:00][%mdl 4096] Endgame KRB-KRN} Ra3 {[%emt 0:00:00]} 47. Rc6+ {[%emt 0:00:00]} Kd5 {[%emt 0:00:00]} 48. Rc7 {[%emt 0:00:00]} (48. Rc2 $142) 48... Ra2+ {[%emt 0:00:14]} 49. Kf1 {[%emt 0:00:00]} gxh3 {[%emt 0:13:45] aiming for ...h2.} 50. Rxa7 {[%emt 0:00:00]} Nf6 {[%emt 0:00:47] ( -> ...h2)} 51. Kg1 {[%emt 0:00:00]} Ra1 {[%emt 0:00:00]} 52. Kh2 {[%emt 0:00:00]} Rxe1 {[%emt 0:00:00]} 53. Rb7 {[%emt 0:00:00]} Ra1 {[%emt 0:06:02]} 54. Rxb5+ {[%emt 0:00:00]} Ke6 {[%emt 0:00:00]} 55. Rb6+ {[%emt 0:00:00]} Kf5 {[%emt 0:00:00]} 56. Kxh3 {[%emt 0:00:00]} Ra2 {[%emt 0:00:00] Weighted Error Value: White=0.46/Black=0.10 (very precise)} 0-1